[Event "21st Sants Open 2019"]
[Site "Cotxeres de Sants"]
[Date "2019.08.26"]
[Round "4.7"]
[White "Berdayes Ason, Dylan Isidro"]
[Black "Valenzuela Gomez, Fernando"]
[Result "0-1"]
[ECO "B90"]
[WhiteElo "2458"]
[BlackElo "2388"]
[Annotator "ChessBase"]
[PlyCount "76"]
[EventDate "2019.08.22"]
[EventType "swiss"]
[EventCountry "ESP"]
[SourceTitle "playchess.com"]
[Source "ChessBase"]
[SourceQuality "1"]
[TimeControl "40/5400+30:1800+30"]

1. e4 {[%emt 0:04:36]} c5 {[%emt 0:06:59]} 2. Nf3 {[%emt 0:00:03]} d6 {[%emt 0:00:23]} 3. d4 {[%emt 0:00:03]} cxd4 {[%emt 0:00:05]} 4. Nxd4 {[%emt 0:00:04]} Nf6 {[%emt 0:00:15]} 5. Nc3 {[%emt 0:00:02]} a6 {[%emt 0:00:06]} 6. Be3 {[%emt 0:00:05]} e5 {[%emt 0:00:09]} 7. Nb3 {[%emt 0:00:02]} Be7 {[%emt 0:00:19]} 8. f3 {[%emt 0:00:19]} Be6 {[%emt 0:00:19]} 9. Qd2 {[%emt 0:00:03]} O-O {[%emt 0:00:48]} 10. O-O-O {[%emt 0:00:04]} Nbd7 {[%emt 0:00:47]} 11. g4 {[%emt 0:00:02]} Qc7 {[%emt 0:00:10]} 12. g5 {[%emt 0:01:27]} Nh5 {[%emt 0:00:15]} 13. Kb1 {[%emt 0:00:43]} b5 {[%emt 0:01:05]} 14. Nd5 {[%emt 0:07:45]} Bxd5 {[%emt 0:00:35]} 15. exd5 {[%emt 0:00:07]} Nb6 {[%emt 0:00:45]} 16. Na5 {[%emt 0:00:48]} Nxd5 {[%emt 0:01:11]} 17. Qxd5 {[%emt 0:00:03]} Qxa5 {[%emt 0:00:07]} 18. Rg1 {[%emt 0:04:26]} Rac8 {[%emt 0:15:24]} 19. Bd3 {[%emt 0:08:13]} g6 {[%emt 0:00:33]} 20. Rg4 {[%emt 0:11:21]} Qc7 {[%emt 0:05:27]} 21. a4 {[%emt 0:00:31]} Nf4 {[%emt 0:12:04]} 22. Bxf4 {[%emt 0:00:16]} exf4 {[%emt 0:00:04]} 23. axb5 {[%emt 0:13:07]} axb5 {[%emt 0:00:42]} 24. h4 {[%emt 0:01:55]} Qa7 {[%emt 0:09:15]} 25. Rxf4 {[%emt 0:02:40]} Rc5 {[%emt 0:07:08]} 26. Qb3 {[%emt 0:01:23]} b4 {[%emt 0:04:32]} 27. Kc1 {[%emt 0:10:43]} Rxg5 {[%emt 0:08:51]} 28. Rxb4 {[%emt 0:08:05]} Qa1+ {[%emt 0:03:14]} 29. Kd2 {[%emt 0:00:01]} Rg2+ {[%emt 0:00:10]} 30. Be2 {[%emt 0:00:01]} Qa5 {[%emt 0:02:24]} 31. c3 {[%emt 0:00:40]} Bxh4 {[%emt 0:02:19]} 32. Re4 {[%emt 0:04:01]} Qf5 {[%emt 0:07:07]} 33. c4 {[%emt 0:09:27]} Bg5+ {[%emt 0:02:00]} 34. Kd3 {[%emt 0:00:01]} Rd8 {[%emt 0:02:45]} 35. Kd4 {[%emt 0:06:51]} Qc5+ {[%emt 0:02:59]} 36. Kc3 {[%emt 0:00:46]} Bf6+ {[%emt 0:00:26]} 37. Kc2 {[%emt 0:01:00]} d5 {[%emt 0:00:07]} 38. Qe3 {[%emt 0:01:25]} Rxe2+ {[%emt 0:02:08]} 0-1

[Event "21st Sants Open 2019"]
[Site "Cotxeres de Sants"]
[Date "2019.08.26"]
[Round "4.8"]
[White "Lagunow, Raphael"]
[Black "Garcia Ramos, Daniel"]
[Result "1/2-1/2"]
[ECO "C54"]
[WhiteElo "2431"]
[BlackElo "2348"]
[Annotator "NA"]
[PlyCount "35"]
[EventDate "2019.08.22"]
[EventType "swiss"]
[EventCountry "ESP"]
[SourceTitle "playchess.com"]
[Source "ChessBase"]
[SourceQuality "1"]
[TimeControl "40/5400+30:1800+30"]

1. e4 {[%emt 0:03:22]} e5 {[%emt 0:00:00]} 2. Nf3 {[%emt 0:00:09]} Nc6 {[%emt 0:00:00]} 3. Bc4 {[%emt 0:00:05]} Bc5 {[%emt 0:00:00]} 4. c3 {[%emt 0:00:06]} Nf6 {[%emt 0:01:35]} 5. d4 {[%emt 0:00:06]} exd4 {[%emt 0:00:07]} 6. e5 {[%emt 0:00:09]} d5 {[%emt 0:00:08]} 7. Bb5 {[%emt 0:00:07]} Ne4 {[%emt 0:00:05]} 8. cxd4 {[%emt 0:00:05]} Bb6 {[%emt 0:01:04]} 9. Nc3 {[%emt 0:00:29]} O-O {[%emt 0:00:17]} 10. Be3 {[%emt 0:00:26]} Bg4 {[%emt 0:02:52]} 11. h3 {[%emt 0:00:26]} Bh5 {[%emt 0:00:15]} 12. Qc2 {[%emt 0:00:36]} Bg6 {[%emt 0:02:41]} 13. Qb3 {[%emt 0:01:40]} Ne7 {[%emt 0:11:09]} 14. O-O {[%emt 0:15:01]} c6 {[%emt 0:03:53]} 15. Bd3 {[%emt 0:02:00]} Nd2 {[%emt 0:11:49]} 16. Bxd2 {[%emt 0:05:46]} Bxd3 {[%emt 0:00:06]} 17. Rfe1 {[%emt 0:08:22]} Bf5 {[%emt 0:19:02]} 18. Na4 {[%emt 0:19:54]} 1/2-1/2

[Event "21st Sants Open 2019"]
[Site "Cotxeres de Sants"]
[Date "2019.08.26"]
[Round "4.9"]
[White "Gokerkan, Cem Kaan"]
[Black "Bobadilla Viera, Jorge Samuel"]
[Result "1/2-1/2"]
[ECO "B51"]
[WhiteElo "2421"]
[BlackElo "2307"]
[Annotator "NA"]
[PlyCount "69"]
[EventDate "2019.08.22"]
[EventType "swiss"]
[EventCountry "ESP"]
[SourceTitle "playchess.com"]
[Source "ChessBase"]
[SourceQuality "1"]
[TimeControl "40/5400+30:1800+30"]

1. e4 c5 2. Nf3 d6 3. Bb5+ Nd7 4. c4 Ngf6 {[%emt 0:03:13]} 5. O-O {[%emt 0:01:28]} g6 {[%emt 0:00:30]} 6. Nc3 {[%emt 0:00:30]} Bg7 {[%emt 0:02:14]} 7. Ba4 {[%emt 0:00:30]} O-O {[%emt 0:14:33]} 8. d3 {[%emt 0:00:04]} e5 {[%emt 0:07:02]} 9. a3 {[%emt 0:02:22]} Nh5 {[%emt 0:03:44]} 10. Ne1 {[%emt 0:13:23]} Nf4 {[%emt 0:03:43]} 11. Nc2 {[%emt 0:16:41]} Ne6 {[%emt 0:05:00]} 12. b4 {[%emt 0:04:23]} f5 {[%emt 0:07:04]} 13. exf5 {[%emt 0:03:52]} gxf5 {[%emt 0:00:17]} 14. Rb1 {[%emt 0:01:01]} Kh8 {[%emt 0:05:03]} 15. Bxd7 {[%emt 0:20:44]} Bxd7 {[%emt 0:01:04]} 16. bxc5 {[%emt 0:00:01]} Nxc5 {[%emt 0:00:18]} 17. Nd5 {[%emt 0:05:01]} f4 {[%emt 0:07:25]} 18. d4 {[%emt 0:00:45]} exd4 {[%emt 0:00:20]} 19. Bb2 {[%emt 0:01:50]} f3 {[%emt 0:06:54]} 20. Bxd4 {[%emt 0:01:34]} Qg5 {[%emt 0:00:51]} 21. Bxg7+ {[%emt 0:01:54]} Qxg7 {[%emt 0:00:11]} 22. g3 {[%emt 0:01:46]} Rae8 {[%emt 0:05:16]} 23. Nde3 {[%emt 0:03:25]} Bc6 {[%emt 0:05:28]} 24. Qd4 {[%emt 0:04:06]} Ne4 {[%emt 0:05:14]} 25. Qxg7+ {[%emt 0:01:02]} Kxg7 {[%emt 0:00:02]} 26. Rbd1 {[%emt 0:00:23]} b6 {[%emt 0:07:20]} 27. Rd3 {[%emt 0:02:38]} Re5 {[%emt 0:00:57]} 28. Nd4 {[%emt 0:01:37]} Bd7 {[%emt 0:00:02]} 29. Nd5 {[%emt 0:02:24]} Bh3 {[%emt 0:01:49]} 30. Ra1 {[%emt 0:03:43]} Ng5 {[%emt 0:02:14]} 31. Nf4 {[%emt 0:03:53]} Rfe8 {[%emt 0:00:50]} 32. Rdd1 {[%emt 0:00:25]} Re4 {[%emt 0:03:07]} 33. Nb5 {[%emt 0:03:08]} Kh8 34. Nxd6 Rxf4 35. gxf4 1/2-1/2

[Event "21st Sants Open 2019"]
[Site "Cotxeres de Sants"]
[Date "2019.08.26"]
[Round "4.10"]
[White "Vaibhav, Suri"]
[Black "Sohier, Julien"]
[Result "1-0"]
[ECO "C65"]
[WhiteElo "2591"]
[BlackElo "2161"]
[Annotator "ChessBase"]
[PlyCount "87"]
[EventDate "2019.08.22"]
[EventType "swiss"]
[EventCountry "ESP"]
[SourceTitle "playchess.com"]
[Source "ChessBase"]
[SourceQuality "1"]
[TimeControl "40/5400+30:1800+30"]

1. e4 {[%emt 0:00:00]} e5 {[%emt 0:05:45]} 2. Nf3 {[%emt 0:00:22]} Nc6 {[%emt 0:00:13]} 3. Bb5 {[%emt 0:00:06]} Nf6 {[%emt 0:01:45]} 4. d3 {[%emt 0:00:13]} Bc5 {[%emt 0:00:42]} 5. c3 {[%emt 0:00:36]} d6 {[%emt 0:04:54]} 6. d4 {[%emt 0:11:30]} exd4 {[%emt 0:01:35]} 7. cxd4 {[%emt 0:00:17]} Bb4+ {[%emt 0:00:05]} 8. Kf1 {[%emt 0:02:07]} d5 {[%emt 0:05:02]} 9. e5 {[%emt 0:03:07]} Nd7 {[%emt 0:05:03]} 10. Qb3 {[%emt 0:02:26]} Be7 {[%emt 0:08:45]} 11. Qxd5 {[%emt 0:01:25]} O-O {[%emt 0:04:20]} 12. Nc3 {[%emt 0:09:58]} Nb4 {[%emt 0:05:23]} 13. Qe4 {[%emt 0:04:13]} f5 {[%emt 0:06:52]} 14. Qe2 {[%emt 0:08:04]} Nb6 {[%emt 0:02:11]} 15. Bc4+ {[%emt 0:14:47]} Kh8 {[%emt 0:16:56]} 16. a3 {[%emt 0:00:55]} N4d5 {[%emt 0:01:30]} 17. Nxd5 {[%emt 0:00:36]} Nxd5 {[%emt 0:01:10]} 18. e6 {[%emt 0:08:38]} c6 {[%emt 0:15:02]} 19. h4 {[%emt 0:02:19]} Qd6 {[%emt 0:01:35]} 20. Bg5 {[%emt 0:03:10]} Bxe6 {[%emt 0:04:00]} 21. Bxd5 {[%emt 0:02:35]} cxd5 {[%emt 0:00:07]} 22. Re1 {[%emt 0:00:06]} Bxg5 {[%emt 0:01:01]} 23. hxg5 {[%emt 0:00:02]} Bd7 {[%emt 0:04:31]} 24. Qe7 {[%emt 0:07:29]} Qxe7 {[%emt 0:02:45]} 25. Rxe7 {[%emt 0:00:02]} Bc6 {[%emt 0:00:26]} 26. Ne5 {[%emt 0:00:05]} Rfe8 {[%emt 0:00:38]} 27. Rc7 {[%emt 0:04:29]} Kg8 {[%emt 0:00:36]} 28. g6 {[%emt 0:00:06]} hxg6 {[%emt 0:00:19]} 29. Nxg6 {[%emt 0:00:24]} Bb5+ {[%emt 0:00:34]} 30. Kg1 {[%emt 0:00:02]} Re1+ {[%emt 0:00:25]} 31. Kh2 {[%emt 0:00:01]} Rxh1+ {[%emt 0:00:39]} 32. Kxh1 {[%emt 0:00:01]} Bc6 {[%emt 0:00:37]} 33. Ne7+ {[%emt 0:00:07]} Kf8 {[%emt 0:00:17]} 34. Nxf5 {[%emt 0:01:12]} Re8 {[%emt 0:00:26]} 35. Nxg7 {[%emt 0:01:32]} Re2 {[%emt 0:00:16]} 36. f4 {[%emt 0:01:34]} Rxb2 {[%emt 0:00:50]} 37. f5 {[%emt 0:00:25]} Be8 {[%emt 0:00:39]} 38. Ne6+ {[%emt 0:04:48]} Kg8 {[%emt 0:00:02]} 39. Rg7+ {[%emt 0:00:06]} Kh8 {[%emt 0:00:05]} 40. Re7 {[%emt 0:00:00]} Bh5 {[%emt 0:00:00]} 41. Nf4 {[%emt 0:00:19]} Bg4 {[%emt 0:03:31]} 42. Ng6+ {[%emt 0:00:39]} Kg8 {[%emt 0:00:13]} 43. f6 {[%emt 0:00:04]} Be6 {[%emt 0:03:48]} 44. Rg7# {[%emt 0:00:05]} 1-0

[Event "21st Sants Open 2019"]
[Site "Cotxeres de Sants"]
[Date "2019.08.26"]
[Round "4.11"]
[White "Mieles Palau, Daniel"]
[Black "Idani, Pouya"]
[Result "0-1"]
[ECO "A37"]
[WhiteElo "2384"]
[BlackElo "2581"]
[Annotator "ChessBase"]
[PlyCount "52"]
[EventDate "2019.08.22"]
[EventType "swiss"]
[EventCountry "ESP"]
[SourceTitle "playchess.com"]
[Source "ChessBase"]
[SourceQuality "1"]
[TimeControl "40/5400+30:1800+30"]

1. c4 {[%emt 0:00:00]} c5 {[%emt 0:00:00]} 2. Nc3 {[%emt 0:00:10]} g6 {[%emt 0:00:00]} 3. g3 {[%emt 0:01:25]} Bg7 {[%emt 0:00:00]} 4. Bg2 {[%emt 0:00:05]} Nc6 {[%emt 0:00:00]} 5. Nf3 {[%emt 0:00:14]} d6 {[%emt 0:00:00]} 6. O-O {[%emt 0:00:05]} e6 {[%emt 0:00:06]} 7. e3 {[%emt 0:01:28]} Nge7 {[%emt 0:00:05]} 8. d4 {[%emt 0:00:04]} O-O {[%emt 0:00:04]} 9. Re1 {[%emt 0:00:20]} Rb8 {[%emt 0:03:31]} 10. b3 {[%emt 0:01:50]} Nf5 {[%emt 0:00:37]} 11. Ne2 {[%emt 0:01:53]} e5 {[%emt 0:17:45]} 12. dxe5 {[%emt 0:10:09]} dxe5 {[%emt 0:00:56]} 13. Rb1 {[%emt 0:00:12]} Nd6 {[%emt 0:07:53]} 14. Ng5 {[%emt 0:27:11]} Qe7 {[%emt 0:16:22]} 15. Ba3 {[%emt 0:14:44]} Qxg5 {[%emt 0:10:11]} 16. Bxc6 {[%emt 0:13:43]} bxc6 {[%emt 0:00:16]} 17. Qxd6 {[%emt 0:01:02]} Bf5 {[%emt 0:01:05]} 18. Qxc6 {[%emt 0:01:25]} Bxb1 {[%emt 0:02:46]} 19. Rxb1 {[%emt 0:00:05]} Rbc8 {[%emt 0:05:10]} 20. Qf3 {[%emt 0:01:12]} f5 {[%emt 0:01:18]} 21. Rd1 {[%emt 0:04:49]} e4 {[%emt 0:06:21]} 22. Qf4 {[%emt 0:02:00]} Qh5 {[%emt 0:07:13]} 23. g4 {[%emt 0:00:04]} fxg4 {[%emt 0:00:16]} 24. Qxe4 {[%emt 0:00:05]} g3 {[%emt 0:00:26]} 25. Qd5+ {[%emt 0:03:24]} Qxd5 {[%emt 0:01:19]} 26. cxd5 {[%emt 0:00:06]} Rxf2 {[%emt 0:00:06]} 0-1

[Event "21st Sants Open 2019"]
[Site "Cotxeres de Sants"]
[Date "2019.08.26"]
[Round "4.13"]
[White "Antova, Gabriela"]
[Black "Santos Latasa, Jaime"]
[Result "0-1"]
[ECO "B68"]
[WhiteElo "2270"]
[BlackElo "2586"]
[Annotator "ChessBase"]
[PlyCount "156"]
[EventDate "2019.08.22"]
[EventType "swiss"]
[EventCountry "ESP"]
[SourceTitle "playchess.com"]
[Source "ChessBase"]
[SourceQuality "1"]
[TimeControl "40/5400+30:1800+30"]

1. e4 {[%emt 0:00:00]} c5 {[%emt 0:00:00]} 2. Nf3 {[%emt 0:00:00]} Nc6 {[%emt 0:00:00]} 3. d4 {[%emt 0:00:00]} cxd4 {[%emt 0:00:00]} 4. Nxd4 {[%emt 0:00:00]} Nf6 {[%emt 0:00:01]} 5. Nc3 {[%emt 0:00:06]} d6 {[%emt 0:00:04]} 6. Bg5 {[%emt 0:06:12]} e6 {[%emt 0:00:20]} 7. Qd2 {[%emt 0:00:12]} a6 {[%emt 0:00:08]} 8. O-O-O {[%emt 0:01:22]} Be7 {[%emt 0:00:18]} 9. f4 {[%emt 0:07:50]} Bd7 {[%emt 0:00:16]} 10. Be2 {[%emt 0:07:14]} Qc7 {[%emt 0:04:15]} 11. Rhe1 {[%emt 0:07:06]} O-O {[%emt 0:01:03]} 12. g4 {[%emt 0:02:51]} b5 {[%emt 0:06:53]} 13. Bf3 {[%emt 0:04:14]} Rac8 {[%emt 0:05:21]} 14. Kb1 {[%emt 0:09:46]} Nxd4 {[%emt 0:04:18]} 15. Qxd4 {[%emt 0:00:05]} Bc6 {[%emt 0:00:12]} 16. Ne2 {[%emt 0:06:40]} Bb7 {[%emt 0:07:21]} 17. Qd3 {[%emt 0:01:15]} Rfd8 {[%emt 0:00:33]} 18. Bxf6 {[%emt 0:06:10]} Bxf6 {[%emt 0:00:22]} 19. g5 {[%emt 0:00:06]} Be7 {[%emt 0:00:03]} 20. h4 {[%emt 0:00:33]} Qc4 {[%emt 0:00:17]} 21. Nd4 {[%emt 0:02:27]} Qxd3 {[%emt 0:00:20]} 22. Rxd3 {[%emt 0:01:03]} Rc5 {[%emt 0:06:28]} 23. c3 {[%emt 0:04:27]} Re8 {[%emt 0:00:32]} 24. Nb3 {[%emt 0:06:07]} Rc7 {[%emt 0:00:54]} 25. f5 {[%emt 0:04:41]} Bf8 {[%emt 0:00:36]} 26. Rde3 {[%emt 0:04:18]} Rce7 {[%emt 0:02:34]} 27. f6 {[%emt 0:06:18]} Rc7 {[%emt 0:00:23]} 28. Rd3 {[%emt 0:03:22]} Kh8 {[%emt 0:05:54]} 29. a3 {[%emt 0:01:59]} Bc8 {[%emt 0:05:19]} 30. Kc2 {[%emt 0:01:22]} Bd7 {[%emt 0:00:44]} 31. Bh5 {[%emt 0:00:29]} Bc6 {[%emt 0:00:35]} 32. Nd4 {[%emt 0:01:06]} Ba8 {[%emt 0:00:16]} 33. Nb3 {[%emt 0:00:20]} Rb8 {[%emt 0:03:06]} 34. Kd2 {[%emt 0:00:37]} gxf6 {[%emt 0:03:09]} 35. gxf6 {[%emt 0:00:14]} Bh6+ {[%emt 0:00:04]} 36. Kc2 {[%emt 0:01:19]} Bf4 {[%emt 0:00:22]} 37. Nd4 {[%emt 0:01:20]} Be5 {[%emt 0:00:42]} 38. Nf3 {[%emt 0:00:29]} Bxf6 {[%emt 0:00:18]} 39. Rxd6 {[%emt 0:00:31]} a5 {[%emt 0:00:11]} 40. e5 {[%emt 0:00:00]} Bxf3 {[%emt 0:00:00]} 41. Bxf3 {[%emt 0:04:26]} Bxh4 {[%emt 0:01:58]} 42. Rh1 {[%emt 0:05:22]} Bg5 {[%emt 0:02:50]} 43. Ra6 {[%emt 0:06:17]} a4 {[%emt 0:07:27]} 44. Rc6 {[%emt 0:02:01]} Rd7 {[%emt 0:00:33]} 45. Rd1 {[%emt 0:08:04]} Rxd1 {[%emt 0:00:18]} 46. Bxd1 {[%emt 0:00:01]} Rd8 {[%emt 0:00:29]} 47. Rd6 {[%emt 0:00:08]} Rc8 {[%emt 0:02:55]} 48. Bh5 {[%emt 0:02:13]} Rc7 {[%emt 0:00:05]} 49. Rb6 {[%emt 0:00:41]} Kg7 {[%emt 0:00:15]} 50. Rxb5 {[%emt 0:00:43]} Rd7 {[%emt 0:00:07]} 51. Ra5 {[%emt 0:01:39]} Rd2+ {[%emt 0:00:11]} 52. Kb1 {[%emt 0:00:02]} Rh2 {[%emt 0:00:18]} 53. Bf3 {[%emt 0:01:20]} Rh3 {[%emt 0:01:34]} 54. Bc6 {[%emt 0:00:50]} Bf4 {[%emt 0:00:19]} 55. Rxa4 {[%emt 0:01:31]} Bxe5 {[%emt 0:00:53]} 56. Re4 {[%emt 0:01:00]} Bxc3 {[%emt 0:03:24]} 57. bxc3 {[%emt 0:00:06]} Rxc3 {[%emt 0:00:05]} 58. Rg4+ {[%emt 0:01:08]} Kf8 {[%emt 0:00:09]} 59. Ba4 {[%emt 0:02:29]} Rxa3 {[%emt 0:00:12]} 60. Bc2 {[%emt 0:00:09]} f5 {[%emt 0:00:24]} 61. Rh4 {[%emt 0:00:31]} Kg7 {[%emt 0:00:09]} 62. Kc1 {[%emt 0:00:11]} Kg6 {[%emt 0:00:17]} 63. Kd2 {[%emt 0:00:57]} h6 {[%emt 0:00:09]} 64. Rg4+ {[%emt 0:01:19]} Kf6 {[%emt 0:00:20]} 65. Rg1 {[%emt 0:00:51]} Rh3 {[%emt 0:00:29]} 66. Bd3 {[%emt 0:00:47]} Rh2+ {[%emt 0:01:08]} 67. Ke1 {[%emt 0:01:12]} h5 {[%emt 0:00:37]} 68. Rg8 {[%emt 0:00:39]} h4 {[%emt 0:00:10]} 69. Bc4 {[%emt 0:00:49]} Rc2 {[%emt 0:00:35]} 70. Bd3 {[%emt 0:00:37]} Rb2 {[%emt 0:00:06]} 71. Kf1 {[%emt 0:01:05]} Rb3 {[%emt 0:00:20]} 72. Bc4 {[%emt 0:00:22]} Rc3 {[%emt 0:00:07]} 73. Bb5 {[%emt 0:00:54]} e5 {[%emt 0:01:17]} 74. Bd7 {[%emt 0:00:37]} e4 {[%emt 0:00:28]} 75. Rf8+ {[%emt 0:01:37]} Ke7 {[%emt 0:00:08]} 76. Rxf5 {[%emt 0:00:01]} Kxd7 {[%emt 0:00:13]} 77. Rf4 {[%emt 0:00:26]} h3 {[%emt 0:00:07]} 78. Rxe4 {[%emt 0:00:12]} Rc1+ {[%emt 0:00:07]} 0-1

[Event "21st Sants Open 2019"]
[Site "Cotxeres de Sants"]
[Date "2019.08.26"]
[Round "4.14"]
[White "Harika, Dronavalli"]
[Black "Nogerbek, Kazybek"]
[Result "1/2-1/2"]
[ECO "E21"]
[WhiteElo "2495"]
[BlackElo "2375"]
[Annotator "ChessBase"]
[PlyCount "90"]
[EventDate "2019.08.22"]
[EventType "swiss"]
[EventCountry "ESP"]
[SourceTitle "playchess.com"]
[Source "ChessBase"]
[SourceQuality "1"]
[TimeControl "40/5400+30:1800+30"]

1. d4 {[%emt 0:00:30]} Nf6 {[%emt 0:00:00]} 2. c4 {[%emt 0:00:10]} e6 {[%emt 0:00:00]} 3. Nc3 {[%emt 0:00:07]} Bb4 {[%emt 0:00:49]} 4. Nf3 {[%emt 0:01:23]} O-O {[%emt 0:00:28]} 5. Bg5 {[%emt 0:01:28]} c5 {[%emt 0:00:15]} 6. Rc1 {[%emt 0:02:21]} h6 {[%emt 0:00:56]} 7. Bh4 {[%emt 0:07:05]} cxd4 {[%emt 0:00:40]} 8. Nxd4 {[%emt 0:00:08]} d5 {[%emt 0:00:09]} 9. cxd5 {[%emt 0:01:11]} g5 {[%emt 0:00:08]} 10. Bg3 {[%emt 0:00:04]} Qxd5 {[%emt 0:00:08]} 11. a3 {[%emt 0:00:12]} Bxc3+ {[%emt 0:01:38]} 12. bxc3 {[%emt 0:00:05]} Rd8 {[%emt 0:05:00]} 13. e3 {[%emt 0:11:25]} e5 {[%emt 0:15:04]} 14. Nf3 {[%emt 0:06:58]} Nc6 {[%emt 0:00:57]} 15. Qxd5 {[%emt 0:01:01]} Rxd5 {[%emt 0:00:19]} 16. a4 {[%emt 0:02:22]} Ne4 {[%emt 0:03:21]} 17. Bb5 {[%emt 0:00:31]} a6 {[%emt 0:03:13]} 18. c4 {[%emt 0:07:51]} Rc5 {[%emt 0:00:56]} 19. Bxc6 {[%emt 0:00:03]} bxc6 {[%emt 0:00:14]} 20. Bxe5 {[%emt 0:04:52]} g4 {[%emt 0:04:25]} 21. Bd4 {[%emt 0:01:32]} Rf5 {[%emt 0:00:11]} 22. Nh4 {[%emt 0:06:04]} Rxf2 {[%emt 0:00:53]} 23. Rf1 {[%emt 0:00:05]} Rxf1+ {[%emt 0:00:59]} 24. Kxf1 {[%emt 0:00:04]} c5 {[%emt 0:00:34]} 25. Be5 {[%emt 0:00:44]} Be6 {[%emt 0:00:10]} 26. Ke1 {[%emt 0:00:50]} Rd8 {[%emt 0:04:16]} 27. Rb1 {[%emt 0:01:13]} Bxc4 {[%emt 0:01:27]} 28. Nf5 {[%emt 0:00:55]} Be6 {[%emt 0:03:48]} 29. Ne7+ {[%emt 0:05:49]} Kh7 {[%emt 0:01:13]} 30. Rb8 {[%emt 0:00:45]} Rxb8 {[%emt 0:00:52]} 31. Bxb8 {[%emt 0:00:02]} c4 {[%emt 0:01:50]} 32. Be5 {[%emt 0:04:02]} c3 {[%emt 0:02:33]} 33. a5 {[%emt 0:05:59]} h5 {[%emt 0:05:29]} 34. Kd1 {[%emt 0:11:29]} Bb3+ {[%emt 0:02:17]} 35. Kc1 {[%emt 0:00:04]} c2 {[%emt 0:06:15]} 36. Nc6 {[%emt 0:00:06]} Nf2 {[%emt 0:04:00]} 37. Nb4 {[%emt 0:00:24]} Kg6 {[%emt 0:00:24]} 38. Bd4 {[%emt 0:03:59]} h4 {[%emt 0:02:48]} 39. e4 {[%emt 0:04:14]} Nxe4 {[%emt 0:03:09]} 40. Nxa6 {[%emt 0:00:00]} g3 {[%emt 0:00:00]} 41. h3 {[%emt 0:03:40]} Bd5 {[%emt 0:05:32]} 42. Nb4 {[%emt 0:00:57]} Ba8 {[%emt 0:00:21]} 43. Nxc2 {[%emt 0:04:46]} Bb7 {[%emt 0:05:32]} 44. Ne1 Nd6 {[%emt 0:04:40]} 45. Bb6 {[%emt 0:03:51]} Nc4 1/2-1/2

[Event "21st Sants Open 2019"]
[Site "Cotxeres de Sants"]
[Date "2019.08.26"]
[Round "4.15"]
[White "Recio Reyes, Sergio"]
[Black "Morais Carreras, Javier"]
[Result "0-1"]
[ECO "C42"]
[WhiteElo "1894"]
[BlackElo "1939"]
[Annotator "NA"]
[PlyCount "144"]
[EventDate "2019.08.22"]
[EventType "swiss"]
[EventCountry "ESP"]
[SourceTitle "playchess.com"]
[Source "ChessBase"]
[SourceQuality "1"]
[TimeControl "40/5400+30:1800+30"]

1. e4 {[%emt 0:00:00]} e5 {[%emt 0:00:00]} 2. Nf3 {[%emt 0:00:00]} Nf6 {[%emt 0:00:00]} 3. Nc3 {[%emt 0:00:56]} Bb4 {[%emt 0:00:00]} 4. Nxe5 {[%emt 0:01:28]} O-O {[%emt 0:01:20]} 5. Be2 {[%emt 0:01:31]} Re8 {[%emt 0:02:14]} 6. Nd3 {[%emt 0:00:13]} Bxc3 {[%emt 0:00:25]} 7. dxc3 {[%emt 0:00:08]} Nxe4 {[%emt 0:00:20]} 8. O-O {[%emt 0:00:30]} d5 {[%emt 0:02:33]} 9. Nf4 {[%emt 0:00:09]} c6 {[%emt 0:01:39]} 10. c4 {[%emt 0:07:14]} d4 {[%emt 0:04:49]} 11. Re1 {[%emt 0:02:53]} c5 {[%emt 0:08:55]} 12. Bd3 {[%emt 0:02:36]} Nf6 {[%emt 0:01:50]} 13. Bd2 {[%emt 0:01:18]} Bg4 {[%emt 0:01:26]} 14. f3 {[%emt 0:01:46]} Bd7 {[%emt 0:00:59]} 15. b4 {[%emt 0:05:52]} b6 {[%emt 0:10:41]} 16. Bf1 {[%emt 0:07:54]} Bc6 {[%emt 0:09:04]} 17. Nd3 {[%emt 0:03:28]} Nbd7 {[%emt 0:04:29]} 18. Bg5 {[%emt 0:02:09]} Rxe1 {[%emt 0:01:44]} 19. Qxe1 {[%emt 0:01:13]} Qf8 {[%emt 0:01:32]} 20. bxc5 {[%emt 0:05:32]} bxc5 {[%emt 0:02:27]} 21. Qa5 {[%emt 0:01:33]} Qd8 {[%emt 0:05:14]} 22. Qa3 {[%emt 0:10:51]} h6 {[%emt 0:02:46]} 23. Bxf6 Qxf6 {[%emt 0:00:59]} 24. Qa5 {[%emt 0:07:58]} Qd8 {[%emt 0:04:11]} 25. Qa3 {[%emt 0:08:26]} Qg5 {[%emt 0:08:16]} 26. Re1 {[%emt 0:03:09]} a5 {[%emt 0:03:43]} 27. f4 {[%emt 0:02:15]} Qf5 {[%emt 0:00:31]} 28. Ne5 {[%emt 0:06:45]} Re8 {[%emt 0:06:02]} 29. Qxa5 {[%emt 0:00:35]} Nxe5 {[%emt 0:00:30]} 30. Rxe5 {[%emt 0:00:42]} Rxe5 {[%emt 0:00:16]} 31. fxe5 {[%emt 0:00:10]} Qxe5 {[%emt 0:01:29]} 32. Qd8+ {[%emt 0:01:01]} Qe8 {[%emt 0:03:08]} 33. Qxe8+ {[%emt 0:02:52]} Bxe8 {[%emt 0:00:08]} 34. Kf2 {[%emt 0:01:09]} Bc6 {[%emt 0:00:39]} 35. Be2 {[%emt 0:03:25]} Kf8 {[%emt 0:00:55]} 36. Bf3 {[%emt 0:00:19]} Bd7 {[%emt 0:03:29]} 37. Ke2 {[%emt 0:04:31]} Ke7 {[%emt 0:00:45]} 38. Kd3 {[%emt 0:01:57]} Kd6 {[%emt 0:02:00]} 39. Bb7 {[%emt 0:00:39]} f5 {[%emt 0:03:16]} 40. c3 {[%emt 0:00:00]} dxc3 {[%emt 0:00:00]} 41. Kxc3 {[%emt 0:03:06]} Bc6 {[%emt 0:05:56]} 42. Bc8 {[%emt 0:10:26]} Ke5 {[%emt 0:00:23]} 43. g3 {[%emt 0:00:47]} Ke4 {[%emt 0:04:13]} 44. Be6 {[%emt 0:00:21]} g5 {[%emt 0:00:55]} 45. Kd2 {[%emt 0:03:43]} f4 {[%emt 0:07:09]} 46. gxf4 {[%emt 0:02:41]} gxf4 {[%emt 0:00:19]} 47. Ke2 {[%emt 0:05:12]} Bb7 {[%emt 0:00:27]} 48. a4 {[%emt 0:00:55]} Ke5 {[%emt 0:01:04]} 49. Bg4 {[%emt 0:01:17]} Kd4 {[%emt 0:01:59]} 50. Be6 {[%emt 0:01:08]} Kc3 {[%emt 0:02:43]} 51. Bd5 {[%emt 0:01:11]} Ba6 {[%emt 0:00:22]} 52. a5 {[%emt 0:01:01]} Kb4 {[%emt 0:01:12]} 53. Kf3 {[%emt 0:02:00]} Kxa5 {[%emt 0:00:07]} 54. Kxf4 {[%emt 0:00:07]} Kb4 {[%emt 0:00:19]} 55. Ke3 {[%emt 0:01:33]} Kc3 {[%emt 0:00:58]} 56. h4 {[%emt 0:00:36]} Bxc4 {[%emt 0:00:13]} 57. Be4 {[%emt 0:00:22]} Kb2 {[%emt 0:03:25]} 58. Kd2 {[%emt 0:00:31]} Bb3 {[%emt 0:00:10]} 59. Ke3 {[%emt 0:02:21]} c4 {[%emt 0:01:18]} 60. Kf4 {[%emt 0:00:23]} c3 {[%emt 0:00:17]} 61. Kg4 {[%emt 0:00:34]} Bd1+ {[%emt 0:00:10]} 62. Kf4 {[%emt 0:01:18]} h5 {[%emt 0:00:45]} 63. Kg5 {[%emt 0:00:39]} c2 {[%emt 0:00:21]} 64. Bxc2 {[%emt 0:00:19]} Kxc2 {[%emt 0:00:11]} 65. Kf4 {[%emt 0:00:03]} Kd3 {[%emt 0:00:18]} 66. Kg3 {[%emt 0:00:19]} Ke4 {[%emt 0:00:10]} 67. Kf2 {[%emt 0:00:25]} Kf4 {[%emt 0:00:19]} 68. Ke1 {[%emt 0:00:27]} Bb3 {[%emt 0:00:10]} 69. Kf2 {[%emt 0:00:08]} Kg4 {[%emt 0:00:11]} 70. Kg2 {[%emt 0:00:06]} Bd5+ {[%emt 0:00:15]} 71. Kh2 {[%emt 0:00:13]} Kxh4 {[%emt 0:00:11]} 72. Kg1 {[%emt 0:00:15]} Kg3 {[%emt 0:00:07]} 0-1